bitfinex-derivatives/quotes_ETHF0:USTF0_20250505
["timestamp","ask_amount","ask_price","bid_price","bid_amount"]
[1746412683452,4.84379,1798.8,1798.7,3.931]
[1746412683655,11.82039,1798.8,1798.7,3.931]
[1746412683851,8.61259,1798.8,1798.7,3.931]
[1746412684248,7.5008,1798.8,1798.7,5.04285]
[1746412684553,7.5008,1798.8,1798.7,3.931]
[1746412685352,11.20690025,1798.8,1798.7,3.931]
[1746412686852,11.20690025,1798.8,1798.7,5.04285]
[1746412687254,7.43810025,1798.8,1798.7,8.52845]
[1746412690950,11.18350025,1798.8,1798.7,8.52845]
[1746412691148,7.43810025,1798.8,1798.7,8.52845]
[1746412692856,3.732,1798.8,1798.7,8.52845]
[1746412693057,7.4774,1798.8,1798.7,8.52845]
[1746412694660,7.4774,1798.8,1798.7,5.04285]
[1746412694858,11.1865,1798.8,1798.7,5.04285]
[1746412695356,7.4774,1798.8,1798.7,5.04285]
[1746412695556,3.732,1798.8,1798.7,8.25065]
[1746412696757,3.732,1798.8,1798.7,13.25065]
[1746412696953,3.732,1798.8,1798.7,8.40645]
[1746412697158,3.70610025,1798.9,1798.8,1.11179]
[1746412697357,1.11179,1798.8,1798.7,3.931]
[1746412697758,4.66349,1798.8,1798.7,3.931]
[1746412698058,1.11194,1798.6,1798.5,3.929]
[1746412698659,11.79714,1798.6,1798.5,3.929]
[1746412699157,15.52914,1798.6,1798.5,3.929]
[1746412700960,14.4172,1798.6,1798.5,5.04098]
[1746412703661,3.732,1798.6,1798.5,5.04098]
[1746412704063,7.1132,1798.6,1798.5,5.04098]
[1746412704759,8.1511369,1798.6,1798.5,5.04098]
[1746412705261,8.1511369,1798.6,1798.5,8.62478]
[1746412705262,4.4191369,1798.6,1798.5,8.62478]
[1746412708165,4.4191369,1798.6,1798.5,12.17648]
[1746412708767,3.5494,1798.7,1798.6,1.11192]
[1746412709165,7.2814,1798.7,1798.6,4.56412]
[1746412709363,3.732,1798.7,1798.6,4.56412]
[1746412711562,7.1859,1798.7,1798.6,4.56412]
[1746412712465,8.29778,1798.7,1798.5,5.04096]
[1746412712768,10.9199,1798.6,1798.5,5.04096]
[1746412713167,14.6519,1798.6,1798.5,5.04096]
[1746412716172,15.76382,1798.6,1798.4,1.112]
[1746412716475,3.631,1798.5,1798.4,1.112]
[1746412716673,3.631,1798.5,1798.4,5.036]
[1746412717073,7.363,1798.5,1798.4,8.2438]
[1746412717266,3.732,1798.5,1798.4,8.2438]
[1746412717774,3.732,1798.5,1798.4,16.8195]
[1746412717969,3.732,1798.5,1798.4,11.8195]
[1746412718269,4.41912392,1798.6,1798.5,1.11198]
[1746412718465,4.41912392,1798.6,1798.5,4.60578]
[1746412719169,8.15112392,1798.6,1798.5,4.60578]
[1746412720086,6.98187392,1798.6,1798.5,9.60578]
[1746412720281,3.24987392,1798.6,1798.5,9.60578]
[1746412720786,5.56515261,1798.8,1798.7,1.11185]
[1746412720987,5.56515261,1798.8,1798.7,8.24365]
[1746412721491,5.56515261,1798.8,1798.7,15.14285]
[1746412721788,3.12947261,1798.8,1798.7,15.14285]
[1746412722486,1.94736261,1798.8,1798.7,15.14285]
[1746412722681,7.41348386,1798.9,1798.8,1.11179]
[1746412722881,7.41348386,1798.9,1798.8,4.72839]
[1746412723781,9.17942347,1799.0,1798.8,8.6166]
[1746412724088,21.39321661,1799.4,1799.2,1.11154]
[1746412724287,21.39321661,1799.4,1799.2,5.03454]
[1746412724878,15.58619326,1799.3,1799.2,5.03454]
[1746412725082,7.3861,1799.3,1799.2,5.03454]
[1746412727988,11.1123,1799.3,1799.2,5.03454]
[1746412728384,11.1123,1799.3,1799.0,3.5032]
[1746412728688,3.568,1799.2,1799.1,5.03461]
[1746412729089,3.568,1799.2,1799.1,3.923]
[1746412729090,12.3,1799.2,1799.1,3.923]
[1746412729278,12.3,1799.2,1799.1,5.03461]
[1746412729480,7.3,1799.2,1799.1,5.03461]
[1746412732089,3.568,1799.2,1799.1,5.03461]
[1746412732391,3.568,1799.2,1799.1,8.24241]
[1746412733695,3.7262,1799.3,1799.2,1.11154]
[1746412733891,6.9706,1799.4,1799.2,7.2263]
[1746412734090,10.7026,1799.4,1799.2,7.2263]
[1746412734390,10.7026,1799.4,1799.3,3.5976]
[1746412734988,10.7026,1799.4,1799.3,4.70908]
[1746412735192,3.732,1799.4,1799.3,4.70908]
[1746412736195,3.4306,1799.5,1799.4,1.11142]
[1746412736389,3.4306,1799.5,1799.4,5.03342]
[1746412737295,7.1626,1799.5,1799.4,5.03342]
[1746412737689,7.1626,1799.5,1799.4,8.77192]
[1746412738084,3.4306,1799.5,1799.4,8.77192]
[1746412739283,3.4306,1799.5,1799.4,5.03342]
[1746412740094,3.4306,1799.5,1799.4,8.41892]
[1746412742194,3.4306,1799.5,1799.4,5.03342]
[1746412743098,7.1626,1799.5,1799.4,5.03342]
[1746412746299,3.4306,1799.5,1799.4,5.03342]
[1746412747496,4.31886,1800.0,1799.8,1.11113]
[1746412747694,7.2326,1799.9,1799.8,5.02613]
[1746412748097,10.9646,1799.9,1799.8,5.02613]
[1746412748899,14.6668,1799.9,1799.8,5.02613]
[1746412755995,14.6668,1799.9,1799.8,3.915]
[1746412756494,14.6668,1799.9,1799.8,5.02617]
[1746412756801,20.77791,1799.9,1799.8,3.915]
[1746412757000,19.6668,1799.9,1799.6,3.914]
[1746412757299,1.11124,1799.7,1799.6,3.914]
[1746412757793,1.11135,1799.6,1799.3,3.914]
[1746412757989,8.16239,1799.5,1799.3,5.02547]
[1746412758294,3.3916,1799.4,1799.3,3.914]
[1746412758502,6.5994,1799.4,1799.3,5.02548]
[1746412759201,10.3314,1799.4,1799.3,5.02548]
[1746412761104,10.7943,1799.4,1799.3,5.02548]
[1746412766204,10.7943,1799.4,1799.3,3.914]
[1746412767407,10.7943,1799.4,1799.3,5.02548]
[1746412772617,10.7943,1799.4,1799.3,3.914]
[1746412772811,11.90572,1799.4,1799.3,3.914]
[1746412773126,1.1116,1799.2,1799.0,3.915]
[1746412773416,8.17591,1799.1,1799.0,5.02666]
[1746412773814,8.17591,1799.1,1799.0,3.915]
[1746412774117,15.7963,1799.1,1798.7,3.915]
[1746412774318,3.6322,1799.0,1798.9,1.11168]
[1746412775117,7.3642,1799.0,1798.9,1.11168]
[1746412775826,8.47587,1799.0,1798.8,1.11175]
[1746412776008,3.3814,1798.9,1798.8,1.11175]
[1746412777218,8.22516,1798.9,1798.7,5.02685]
[1746412777420,3.3999,1798.8,1798.7,5.02685]
[1746412777611,6.7813,1798.8,1798.7,5.02685]
[1746412777811,7.89309,1798.8,1798.7,3.915]
[1746412778321,14.83289,1798.8,1798.7,3.915]
[1746412778719,1.11188,1798.7,1798.5,1.11194]
[1746412778921,8.34428,1798.7,1798.5,1.11194]
[1746412779125,3.5277,1798.6,1798.5,1.11194]
[1746412780215,7.2597,1798.6,1798.5,1.11194]
[1746412781723,8.37162,1798.6,1798.5,1.11194]
[1746412782522,8.37162,1798.6,1798.4,5.01899]
[1746412782723,7.2398,1798.5,1798.4,5.01899]
[1746412783125,10.9718,1798.5,1798.4,5.01899]
[1746412786520,3.732,1798.5,1798.4,5.01899]
[1746412786727,3.732,1798.5,1798.4,16.94559]
[1746412787124,16.6696,1798.7,1798.6,1.11192]
[1746412787522,16.6696,1798.7,1798.5,3.672]
[1746412787523,3.2078,1798.8,1798.7,1.11185]
[1746412787722,3.2078,1798.8,1798.7,5.01985]
[1746412788123,10.561,1798.8,1798.7,8.45405]
[1746412788321,3.732,1798.8,1798.7,8.45405]
[1746412788524,3.732,1798.8,1798.7,11.96025]
[1746412793429,3.732,1798.8,1798.7,5.01985]
[1746412793830,7.4697,1798.8,1798.7,5.01985]
[1746412797936,7.4697,1798.8,1798.7,3.908]
[1746412798138,8.58149,1798.8,1798.7,3.908]
[1746412798338,8.58149,1798.8,1798.7,5.01985]
[1746412798636,7.4697,1798.8,1798.7,5.01985]
[1746412799834,16.3777,1798.8,1797.4,11.04645455]
[1746412800137,4.32031,1797.7,1797.4,14.69815455]
[1746412800338,3.3989,1797.6,1797.4,15.81080455]
[1746412800540,3.3989,1797.6,1797.5,8.47050501]
[1746412800731,3.3989,1797.6,1797.5,12.08330501]
[1746412800940,3.2078,1797.7,1797.6,1.11253]
[1746412801137,6.9398,1797.7,1797.6,4.72533]
[1746412801431,6.9398,1797.7,1797.6,3.6128]
[1746412802338,6.9398,1797.7,1797.6,8.63333]
[1746412802537,6.9398,1797.7,1797.6,14.87870501]
[1746412803239,3.2078,1797.7,1797.6,15.99123501]
[1746412803844,3.2078,1797.9,1797.8,1.11237]
[1746412804436,3.2078,1797.9,1797.8,4.57837]
[1746412808537,3.6965,1798.1,1798.0,1.11229]
[1746412808735,6.7159,1798.3,1798.1,1.11216]
[1746412808935,3.6965,1798.2,1798.1,4.77006]
[1746412810144,3.6965,1798.2,1798.1,3.6579]
[1746412810335,3.6965,1798.2,1798.1,4.77012]
[1746412810643,6.9043,1798.2,1798.1,4.77012]
[1746412810942,6.9043,1798.2,1798.1,1.11222]
[1746412811143,3.6965,1798.2,1798.1,1.11222]
[1746412811441,6.9043,1798.2,1798.1,1.11222]
[1746412814443,6.9043,1798.2,1798.1,4.78582]
[1746412819149,3.6965,1798.2,1798.1,4.78582]
[1746412819342,6.9043,1798.2,1798.1,4.78582]
[1746412820141,6.9043,1798.2,1798.0,3.901]
[1746412820347,6.9043,1798.2,1798.1,1.11222]
[1746412820553,6.9043,1798.2,1798.1,4.69332]
[1746412821148,10.6363,1798.2,1798.1,4.69332]
[1746412822253,11.74846,1798.2,1798.1,3.5811]
[1746412822447,10.6363,1798.2,1798.1,1.11222]
[1746412831662,3.732,1798.2,1798.1,6.11222]
[1746412831866,3.732,1798.2,1798.1,9.52372]
[1746412832361,10.4462,1798.4,1798.3,1.1121]
[1746412832564,10.4462,1798.4,1798.3,5.0131]
[1746412832860,5.54046508,1798.5,1798.4,1.11204]
[1746412833058,5.54046508,1798.5,1798.4,11.29994]
[1746412833256,9.19366508,1798.5,1798.4,11.29994]
[1746412835966,3.6532,1798.5,1798.4,11.29994]
[1746412839671,3.6532,1798.5,1798.4,7.90694]
[1746412841570,6.8072,1798.6,1798.5,1.11198]
[1746412841770,3.2078,1798.6,1798.5,8.19048]
[1746412842770,3.2078,1798.6,1798.5,8.65945847]
[1746412843770,6.6119,1798.6,1798.5,8.19048]
[1746412845162,3.4041,1798.6,1798.5,8.19048]
[1746412845369,6.91454255,1798.7,1798.6,1.11192]
[1746412845570,6.91454255,1798.7,1798.6,8.63582]
[1746412847576,3.2078,1798.7,1798.6,8.63582]
[1746412848771,3.70674255,1798.8,1798.7,1.11185]
[1746412848976,3.70674255,1798.8,1798.7,4.49455]
[1746412850271,7.29894255,1798.8,1798.7,4.49455]
[1746412850473,7.29894255,1798.8,1798.7,1.11185]
[1746412851079,7.29894255,1798.8,1798.6,5.00487]
[1746412851382,10.4724,1798.7,1798.6,3.893]
[1746412851574,10.4724,1798.7,1798.6,5.00487]
[1746412852180,14.2044,1798.7,1798.6,5.00487]
[1746412854281,10.4724,1798.7,1798.6,5.00487]
[1746412855080,14.2044,1798.7,1798.6,5.00487]
[1746412856486,14.2044,1798.7,1798.2,0.44792569]
[1746412856690,3.2078,1798.5,1798.4,1.11204]
[1746412857080,10.5862,1798.5,1798.4,1.11204]
[1746412862591,10.5862,1798.5,1798.3,3.892]
[1746412862792,7.1789,1798.4,1798.3,5.0041]
[1746412863087,7.1789,1798.4,1798.3,3.892]
[1746412863293,10.9109,1798.4,1798.3,5.0041]
[1746412866290,7.1789,1798.4,1798.3,5.0041]
[1746412868296,7.1789,1798.4,1798.3,8.705]
[1746412869898,3.70674255,1798.5,1798.4,1.11204]
[1746412870086,3.70674255,1798.5,1798.4,8.19454]
[1746412870286,3.70674255,1798.5,1798.4,13.19454]
[1746412870596,3.70674255,1798.5,1798.4,8.19454]
[1746412870997,3.70674255,1798.5,1798.4,13.19454]
[1746412871294,3.70674255,1798.5,1798.4,11.92654]
[1746412873198,0.9261069,1798.5,1798.4,11.92654]
[1746412873608,3.2078,1798.7,1798.6,1.11192]
[1746412873794,3.2078,1798.7,1798.6,4.99392]
[1746412874399,6.6011,1798.7,1798.6,8.42482]
[1746412877398,6.6011,1798.7,1798.6,4.99392]
[1746412878304,10.3331,1798.7,1798.6,4.99392]
[1746412879506,16.58258881,1798.7,1798.6,4.99392]
[1746412880402,16.58258881,1798.7,1798.6,3.882]
[1746412880796,16.58258881,1798.7,1798.6,4.99392]
[1746412882208,17.69443881,1798.7,1798.6,3.882]
[1746412883504,17.69443881,1798.7,1798.6,4.99392]
[1746412885207,17.69443881,1798.7,1798.6,3.882]
[1746412887309,17.69443881,1798.7,1798.6,4.99392]
[1746412887510,26.44315683,1798.7,1798.6,3.882]
[1746412888804,25.33130683,1798.7,1798.6,4.99392]
[1746412889703,21.93800683,1798.7,1798.6,4.99392]
[1746412889905,21.93800683,1798.7,1798.6,8.28842]
[1746412890100,18.20600683,1798.7,1798.6,8.28842]
[1746412891308,3.2078,1798.7,1798.6,8.28842]
[1746412891710,9.12874475,1798.8,1798.7,1.11185]
[1746412894012,12.33654475,1798.8,1798.7,1.11185]
[1746412895006,6.7666,1798.8,1798.7,1.11185]
[1746412895707,3.2078,1798.8,1798.7,1.11185]
[1746412896016,3.2078,1798.8,1798.7,4.45675]
[1746412896316,3.2078,1798.8,1798.7,8.18875]
[1746412896915,5.56994475,1798.9,1798.8,1.11179]
[1746412897114,5.56994475,1798.9,1798.8,11.31819]
[1746412897413,5.56994475,1798.9,1798.8,15.05019]
[1746412898113,8.77774475,1799.0,1798.9,1.11173]
[1746412898315,8.77774475,1799.0,1798.9,8.57883]
[1746412898913,5.56994475,1799.0,1798.9,8.57883]
[1746412899214,5.56994475,1799.0,1798.9,17.31083]
[1746412899821,5.56994475,1799.0,1798.9,20.51863]
[1746412900023,7.38583721,1799.1,1799.0,1.11167]
[1746412900224,7.38583721,1799.1,1799.0,4.69677]
[1746412900423,7.38583721,1799.1,1799.0,9.69677]
[1746412901126,7.38583721,1799.1,1799.0,13.42877]
[1746412901422,4.60617544,1799.1,1799.0,13.42877]
[1746412901617,2.77966177,1799.1,1799.0,13.42877]
[1746412901819,9.8369,1799.6,1799.5,1.11136]
[1746412902018,9.8369,1799.6,1799.5,4.98136]
[1746412902219,9.8369,1799.6,1799.5,7.602]
[1746412902422,10.9482,1799.6,1799.5,7.602]
[1746412903321,14.3405,1799.6,1799.5,7.602]
[1746412903527,19.3405,1799.6,1799.5,7.602]
[1746412905020,18.2292,1799.6,1799.5,7.602]
[1746412905220,13.2292,1799.6,1799.5,7.602]
[1746412905526,13.2292,1799.6,1799.5,8.71336]
[1746412905730,6.6001,1799.6,1799.5,8.71336]
[1746412905929,3.2078,1799.8,1799.6,1.1113]
[1746412906226,3.2078,1799.8,1799.7,8.19954]
[1746412907230,6.5842,1799.8,1799.7,11.93154]
[1746412907525,9.23757321,1800.0,1799.9,1.11111]
[1746412907729,9.23757321,1800.0,1799.9,4.98011]
[1746412908128,9.23757321,1800.0,1799.9,8.71211]
[1746412908521,12.61397321,1800.0,1799.9,8.71211]
[1746412908722,12.61397321,1800.0,1799.9,7.601]
[1746412908931,13.72502321,1800.0,1799.9,7.601]
[1746412910530,18.72502321,1800.0,1799.9,7.601]
[1746412911126,13.72502321,1800.0,1799.9,7.601]
[1746412911532,18.72502321,1800.0,1799.9,3.732]
[1746412913235,13.72502321,1800.0,1799.9,3.732]
[1746412913630,12.61397321,1800.0,1799.9,3.732]
[1746412913830,12.61397321,1800.0,1799.9,4.84311]
[1746412914533,12.61397321,1800.0,1799.9,3.732]
[1746412914736,12.61397321,1800.0,1799.9,4.84311]
[1746412915531,13.72502321,1800.0,1799.9,3.732]
[1746412916838,4.48745,1800.0,1799.9,3.732]
[1746412922633,9.48745,1800.0,1799.9,3.732]
[1746412924040,4.48745,1800.0,1799.9,3.732]
[1746412928439,10.31145,1800.0,1799.9,3.732]
[1746412940959,10.31145,1800.0,1799.9,7.0946]
[1746412941155,10.31145,1800.0,1799.9,3.732]
[1746412942262,10.31145,1800.0,1799.9,4.84311]
[1746412942463,10.31145,1800.0,1799.9,7.0946]
[1746412943864,10.31145,1800.0,1799.9,3.732]
[1746412945566,17.69407063,1800.0,1799.9,3.732]
[1746412946666,17.69407063,1800.0,1799.9,7.0614]
[1746412948367,24.31553355,1800.0,1799.9,7.0614]
[1746412953475,20.93913355,1800.0,1799.9,8.17251]
[1746412954177,20.93913355,1800.0,1799.9,7.0614]
[1746412954476,24.19873355,1800.0,1799.9,7.0614]
[1746412954681,18.37473355,1800.0,1799.9,7.0614]
[1746412956677,15.11513355,1800.0,1799.9,7.0614]
[1746412957281,14.00408355,1800.0,1799.9,8.17251]
[1746412957480,15.11513355,1800.0,1799.9,8.17251]
[1746412959685,1.11105,1800.0,1799.9,8.17251]
[1746412959887,1.11105,1800.0,1799.9,7.0614]
[1746412960184,4.52225,1800.0,1799.9,7.0614]
[1746412960484,4.52225,1800.0,1799.9,3.732]
[1746412961786,3.4112,1800.0,1799.9,8.16041]
[1746412962082,20.17785613,1800.1,1800.0,1.11105]
[1746412962083,19.06683613,1800.1,1800.0,1.11105]
[1746412962384,20.17782613,1800.1,1800.0,7.1633]
[1746412962686,23.40422613,1800.1,1800.0,7.1633]
[1746412962879,14.16665292,1800.1,1800.0,7.1633]
[1746412963089,14.16665292,1800.1,1800.0,8.27435]
[1746412963290,14.16665292,1800.1,1800.0,12.00635]
[1746412963892,14.16665292,1800.1,1800.0,10.8953]
[1746412966101,14.16665292,1800.1,1800.0,7.578]
[1746412966500,23.45477685,1800.1,1800.0,7.578]
[1746412969795,1.11124,1799.7,1799.6,7.3171]
[1746412969995,4.31904,1799.7,1799.6,7.3171]
[1746412970703,3.2078,1799.7,1799.6,11.7999]
[1746412971600,6.4356,1799.7,1799.6,11.7999]
[1746412971904,13.12014363,1799.7,1799.6,3.846]
[1746412972105,13.12014363,1799.7,1799.6,4.9573]
[1746412972303,13.12014363,1799.7,1799.6,7.2015]
[1746412973606,13.12014363,1799.7,1799.6,3.846]
[1746412975206,14.97791151,1799.7,1799.6,3.846]
[1746412976311,1.1113,1799.6,1799.5,3.732]
[1746412976611,10.9527,1799.6,1799.5,3.732]
[1746412976910,10.9527,1799.6,1799.5,4.84336]
[1746412977113,9.8414,1799.6,1799.5,4.84336]
[1746412978010,6.5691,1799.6,1799.5,4.84336]
[1746412980014,7.6804,1799.6,1799.5,4.84336]
[1746412980611,7.6804,1799.6,1799.5,3.732]
[1746412983910,15.11147151,1799.6,1799.5,3.732]
[1746412984718,1.11154,1799.2,1799.1,51.953]
[1746412984912,4.31934,1799.2,1799.1,3.846]
[1746412986212,7.60994,1799.2,1799.1,3.846]
[1746412987013,7.60994,1799.2,1799.1,4.95761]
[1746412987213,6.4984,1799.2,1799.1,8.08201]
[1746412987515,12.06480166,1799.2,1799.1,8.08201]
[1746412987909,13.17634166,1799.2,1799.1,8.08201]
[1746412988414,12.06480166,1799.2,1799.1,8.08201]
[1746412989113,13.17634166,1799.2,1799.1,8.08201]
[1746412989313,13.17634166,1799.2,1799.1,6.9704]
[1746412989511,13.17634166,1799.2,1799.1,3.846]
[1746412989714,1.11161,1799.1,1799.0,3.732]
[1746412989912,4.40361,1799.1,1799.0,3.732]
[1746412990817,4.40361,1799.1,1799.0,7.1418]
[1746412991012,4.40361,1799.1,1799.0,3.732]
[1746412993014,6.3092,1799.2,1799.1,1.11161]
[1746412993214,3.2078,1799.2,1799.1,14.49341]
[1746412993515,5.56640166,1799.3,1799.2,1.11154]
[1746412993711,7.43107151,1799.3,1799.2,4.32534]
[1746412994103,7.43107151,1799.3,1799.2,8.05734]
[1746412998212,3.2078,1799.4,1799.3,1.11148]
[1746412998414,3.2078,1799.4,1799.3,4.52208]
[1746412999108,3.2078,1799.4,1799.3,8.25408]
[1746412999621,6.90757521,1799.6,1799.5,1.11136]
[1746412999820,6.90757521,1799.6,1799.5,4.94636]
[1746413000215,6.90757521,1799.6,1799.5,12.08896]
[1746413002018,3.2078,1799.6,1799.5,12.08896]
[1746413016919,6.5321,1799.6,1799.5,12.08896]
[1746413018024,6.5321,1799.6,1799.5,8.67836]
[1746413018225,7.6434,1799.6,1799.5,7.567]
[1746413019027,7.6434,1799.6,1799.5,8.67836]
[1746413019830,7.6434,1799.6,1799.5,7.567]
[1746413021022,7.6434,1799.6,1799.5,8.67836]
[1746413021225,7.6434,1799.6,1799.5,7.567]
[1746413021831,6.5321,1799.6,1799.5,8.67836]
[1746413022130,3.2078,1799.8,1799.7,1.11124]
[1746413022330,12.9056,1799.8,1799.7,1.11124]
[1746413023131,12.9056,1799.8,1799.7,4.84324]
[1746413023332,20.33667151,1799.8,1799.7,4.84324]
[1746413023829,21.44784151,1799.8,1799.7,3.732]
[1746413024630,21.44784151,1799.8,1799.7,4.84324]
[1746413024933,21.44784151,1799.8,1799.7,3.732]
[1746413025632,26.44784151,1799.8,1799.7,3.732]
[1746413027135,21.44784151,1799.8,1799.7,3.732]
[1746413027333,19.57182292,1799.8,1799.7,3.732]
[1746413028034,8.76285292,1799.8,1799.7,4.84324]
[1746413028331,8.76285292,1799.8,1799.7,8.66524]
[1746413028533,11.85495292,1799.8,1799.7,8.66524]
[1746413031232,6.2999,1799.8,1799.7,8.66524]
[1746413034435,7.41107,1799.8,1799.7,3.732]
[1746413036142,13.23507,1799.8,1799.7,3.732]
[1746413038340,19.84733,1799.8,1799.7,3.732]
[1746413039845,1.11136,1799.5,1799.4,3.822]
[1746413040038,3.2078,1799.5,1799.4,4.93342]
[1746413040336,3.2078,1799.5,1799.4,8.66542]
[1746413040534,9.7635,1799.5,1799.4,8.66542]
[1746413043246,9.7635,1799.5,1799.4,11.98802]
[1746413043544,6.4215,1799.5,1799.4,11.98802]
[1746413045332,15.69998801,1799.5,1799.4,11.98802]
[1746413048545,12.48628801,1799.5,1799.4,11.98802]
[1746413048946,8.77489281,1799.5,1799.4,11.98802]
[1746413051850,12.10509281,1799.5,1799.4,11.98802]
[1746413052048,12.10509281,1799.5,1799.4,8.66542]
[1746413053254,7.64936,1799.5,1799.4,7.554]
[1746413055849,13.47336,1799.5,1799.4,3.732]
[1746413056651,20.89615041,1799.5,1799.4,3.732]
[1746413058853,25.89615041,1799.5,1799.4,3.732]
[1746413059043,20.89615041,1799.5,1799.4,3.732]
[1746413059446,25.89615041,1799.5,1799.4,1.10600001]
[1746413059651,20.89615041,1799.5,1799.4,1.10600001]
[1746413059854,29.37900457,1799.5,1799.4,1.10600001]
[1746413060650,34.37900457,1799.5,1799.4,1.10600001]
[1746413062049,38.19000457,1799.5,1799.4,1.10600001]
[1746413063058,28.90188064,1799.5,1799.4,1.10600001]
[1746413064756,29.34708796,1799.5,1799.4,1.10600001]
[1746413065257,1.11165,1799.1,1798.9,3.811]
[1746413065556,6.3748,1799.0,1798.9,3.811]
[1746413065759,9.7577,1799.0,1798.9,3.811]
[1746413065954,9.7577,1799.0,1798.9,7.1153]
[1746413066153,9.7577,1799.0,1798.9,10.8473]
[1746413066461,6.5907,1799.0,1798.9,16.95903]
[1746413066656,3.2078,1799.2,1799.0,1.11162]
[1746413066858,3.2078,1799.2,1799.1,7.66891]
[1746413067362,3.2078,1799.2,1799.1,12.66891]
[1746413067660,3.2078,1799.2,1799.1,15.84791]
[1746413068053,3.2078,1799.2,1799.1,10.84791]
[1746413075655,6.337,1799.2,1799.1,10.84791]
[1746413075965,3.2078,1799.2,1799.1,10.84791]
[1746413080567,8.20748935,1799.3,1799.1,10.84791]
[1746413080766,3.2078,1799.2,1799.1,10.84791]
[1746413082467,4.31934,1799.2,1799.1,6.5573]
[1746413082656,7.46334,1799.2,1799.1,6.5573]
[1746413084878,1.11161,1799.1,1799.0,3.732]
[1746413085072,7.41021,1799.1,1799.0,3.732]
[1746413085265,10.75011,1799.1,1799.0,3.732]
[1746413086072,10.75011,1799.1,1799.0,6.8449]
[1746413086271,10.75011,1799.1,1799.0,3.732]
[1746413086872,10.75011,1799.1,1799.0,7.0815]
[1746413087973,10.75011,1799.1,1799.0,3.732]
[1746413088584,16.31350152,1799.1,1799.0,3.732]
[1746413091983,26.62397533,1799.1,1799.0,3.732]
[1746413092577,32.44797533,1799.1,1799.0,3.732]
[1746413111092,32.44797533,1799.1,1799.0,2.47907]
[1746413111292,32.44797533,1799.1,1799.0,1.34113]
[1746413112092,1.11179,1798.8,1798.7,6.3091]
[1746413112291,4.31959,1798.8,1798.7,3.732]
[1746413112797,4.31959,1798.8,1798.7,13.478]
[1746413112994,4.31959,1798.8,1798.7,10.2467]
[1746413113196,7.59139,1798.8,1798.7,10.2467]
[1746413113697,4.31959,1798.8,1798.7,10.2467]
[1746413117502,9.87850496,1798.8,1798.7,10.2467]
[1746413120302,8.02643765,1798.8,1798.7,10.2467]
[1746413122293,6.91464765,1798.8,1798.7,10.2467]
[1746413123403,9.26576261,1798.8,1798.7,20.24555]
[1746413123602,8.94663984,1798.8,1798.7,20.24555]
[1746413123808,6.17954022,1799.0,1798.9,1.11173]
[1746413124005,6.17954022,1799.0,1798.9,1.21073]
[1746413124205,6.17954022,1799.0,1798.9,9.94273]
[1746413125810,6.17954022,1799.0,1798.9,8.831]
[1746413126011,6.17954022,1799.0,1798.9,9.94273]
[1746413126308,6.17954022,1799.0,1798.9,8.17443]
[1746413127309,3.2078,1799.1,1799.0,1.11167]
[1746413127505,3.2078,1799.1,1799.0,10.99447]
[1746413128011,3.2078,1799.1,1799.0,11.09347]
[1746413128205,3.2078,1799.1,1799.0,14.82547]
[1746413134018,4.24834,1799.4,1799.2,1.11152]
[1746413134220,6.3367,1799.3,1799.1,4.23327]
[1746413134419,6.3367,1799.3,1799.2,1.11154]
[1746413136119,6.3367,1799.3,1799.2,4.84354]
[1746413139521,7.44818,1799.3,1799.2,3.732]
[1746413139723,7.44818,1799.3,1799.2,3.831]
[1746413142425,6.3367,1799.3,1799.2,3.831]
[1746413142927,6.3367,1799.3,1799.2,4.94254]
[1746413143526,6.3367,1799.3,1799.2,3.831]
[1746413143725,7.44818,1799.3,1799.2,3.831]
[1746413144328,6.3367,1799.3,1799.2,3.831]
[1746413144527,7.44818,1799.3,1799.2,3.831]
[1746413148825,6.3367,1799.3,1799.2,3.831]
[1746413149033,6.3367,1799.3,1799.2,4.94254]
[1746413150331,3.2078,1799.3,1799.2,4.94254]
[1746413150531,3.2078,1799.3,1799.2,7.99204]
[1746413154835,3.2516,1799.4,1799.3,1.11148]
[1746413155029,3.2516,1799.4,1799.3,3.875]
[1746413155235,4.36302,1799.4,1799.3,3.831]
[1746413158141,3.2516,1799.4,1799.3,3.831]
[1746413158542,3.2516,1799.4,1799.3,4.94248]
[1746413159642,3.2516,1799.4,1799.3,3.831]
[1746413160650,4.36302,1799.4,1799.3,3.831]
[1746413166140,11.76514866,1799.4,1799.3,3.831]
[1746413169745,18.06642773,1799.4,1799.3,3.831]
[1746413171045,18.06642773,1799.4,1799.3,6.7914]
[1746413171248,13.70340773,1799.4,1799.3,7.90288]
[1746413171452,13.70340773,1799.4,1799.3,12.90288]
[1746413177255,3.2078,1799.7,1799.6,1.1113]
[1746413177448,3.2078,1799.7,1799.6,4.8753]
[1746413177846,3.2078,1799.7,1799.6,4.9743]
[1746413178451,3.2078,1799.7,1799.6,8.2241]
[1746413183848,3.2078,1799.9,1799.8,1.11112]
[1746413184053,6.3747,1799.9,1799.8,4.97412]
[1746413184254,6.3747,1799.9,1799.8,8.70612]
[1746413185449,3.2078,1799.9,1799.8,8.70612]
[1746413185652,3.2078,1799.9,1799.8,11.71142]
[1746413186356,3.2078,1799.9,1799.8,12.48632]
[1746413195360,3.1584,1800.0,1799.9,1.11111]
[1746413195562,3.2078,1800.1,1800.0,1.11105]
[1746413195774,3.2078,1800.1,1800.0,1.21005]
[1746413196165,3.2078,1800.1,1800.0,8.01305]